[Event "December 12 Early 2023"]
[Site "https://www.chess.com"]
[Date "2023.12.12"]
[Round "2"]
[White "Bach Ngoc Thuy Duong"]
[Black "Koelle, Tobias"]
[Result "0-1"]
[Board "125"]
[TimeControl "180+1"]
[WhiteFideId "12408956"]
[BlackFideId "16207378"]
[WhiteElo "2411"]
[BlackElo "2820"]
[WhiteTeam "VIE"]
[BlackTeam "GER"]
[WhiteClock "0:00:00"]
[BlackClock "0:01:10"]

1. d4 {[%clk 0:03:00]}  d6 {[%clk 0:02:37]} 2. c4 {[%clk 0:02:59]}  e5 {[%clk 0:02:15]} 3. Nf3 {[%clk 0:02:52]}  e4 {[%clk 0:02:01]} 4. Ng5 {[%clk 0:02:52]}  Nf6 {[%clk 0:01:56]} 5. g3 {[%clk 0:02:43]}  h6 {[%clk 0:01:55]} 6. Nh3 {[%clk 0:02:43]}  Nc6 {[%clk 0:01:55]} 7. Bg2 {[%clk 0:02:39]}  Bf5 {[%clk 0:01:53]} 8. Nc3 {[%clk 0:02:22]}  g5 {[%clk 0:01:50]} 9. a3 {[%clk 0:01:35]}  Qd7 {[%clk 0:01:49]} 10. Ng1 {[%clk 0:01:35]}  Bg7 {[%clk 0:01:46]} 11. h3 {[%clk 0:01:08]}  Bg6 {[%clk 0:01:36]} 12. e3 {[%clk 0:00:54]}  Ne7 {[%clk 0:01:29]} 13. Nge2 {[%clk 0:00:52]}  c6 {[%clk 0:01:29]} 14. O-O {[%clk 0:00:19]}  d5 {[%clk 0:01:29]} 15. c5 {[%clk 0:00:15]}  Bf5 {[%clk 0:01:30]} 16. Kh2 {[%clk 0:00:15]}  h5 {[%clk 0:01:29]} 17. f3 {[%clk 0:00:14]}  exf3 {[%clk 0:01:29]} 18. Rxf3 {[%clk 0:00:13]}  Ng4+ {[%clk 0:01:28]} 19. Kg1 {[%clk 0:00:11]}  Be6 {[%clk 0:01:29]} 20. hxg4 {[%clk 0:00:10]}  hxg4 {[%clk 0:01:30]} 21. Rf1 {[%clk 0:00:10]}  O-O-O {[%clk 0:01:31]} 22. b4 {[%clk 0:00:09]}  Bf5 {[%clk 0:01:25]} 23. b5 {[%clk 0:00:09]}  Qe6 {[%clk 0:01:24]} 24. bxc6 {[%clk 0:00:08]}  Nxc6 {[%clk 0:01:25]} 25. Rb1 {[%clk 0:00:08]}  Bxb1 {[%clk 0:01:25]} 26. Nxb1 {[%clk 0:00:08]}  Rh5 {[%clk 0:01:20]} 27. Nbc3 {[%clk 0:00:08]}  Rdh8 {[%clk 0:01:20]} 28. Kf2 {[%clk 0:00:07]}  Rh2 {[%clk 0:01:19]} 29. Kg1 {[%clk 0:00:06]}  Ne7 {[%clk 0:01:10]} 30. Qe1 {[%clk 0:00:00]}  Qh6 {[%clk 0:01:10]} 0-1

[Event "December 12 Early 2023"]
[Site "https://www.chess.com"]
[Date "2023.12.12"]
[Round "2"]
[White "Brodsky, David"]
[Black "Marchesich, Giovanni"]
[Result "1-0"]
[Board "126"]
[TimeControl "180+1"]
[WhiteFideId "2073250"]
[BlackFideId "2824790"]
[WhiteElo "2817"]
[BlackElo "2411"]
[WhiteTeam "USA"]
[BlackTeam "ITA"]
[WhiteClock "0:00:36"]
[BlackClock "0:01:37"]

1. d4 {[%clk 0:03:00]}  Nf6 {[%clk 0:02:59]} 2. Nf3 {[%clk 0:03:00]}  c5 {[%clk 0:02:58]} 3. d5 {[%clk 0:02:59]}  b5 {[%clk 0:02:58]} 4. Bg5 {[%clk 0:02:53]}  Qb6 {[%clk 0:02:58]} 5. a4 {[%clk 0:02:41]}  b4 {[%clk 0:02:58]} 6. e3 {[%clk 0:02:35]}  g6 {[%clk 0:02:55]} 7. a5 {[%clk 0:02:23]}  Qd8 {[%clk 0:02:44]} 8. Bxf6 {[%clk 0:02:08]}  exf6 {[%clk 0:02:43]} 9. Nbd2 {[%clk 0:02:09]}  Bg7 {[%clk 0:02:43]} 10. Nc4 {[%clk 0:02:08]}  O-O {[%clk 0:02:39]} 11. Be2 {[%clk 0:02:03]}  d6 {[%clk 0:02:37]} 12. O-O {[%clk 0:02:03]}  Ba6 {[%clk 0:02:37]} 13. c3 {[%clk 0:01:48]}  f5 {[%clk 0:02:35]} 14. cxb4 {[%clk 0:01:45]}  cxb4 {[%clk 0:02:35]} 15. Qb3 {[%clk 0:01:32]}  Nd7 {[%clk 0:02:34]} 16. Qxb4 {[%clk 0:01:31]}  Rb8 {[%clk 0:02:33]} 17. Qxd6 {[%clk 0:01:30]}  Bxb2 {[%clk 0:02:00]} 18. Qxa6 {[%clk 0:01:19]}  Bxa1 {[%clk 0:01:57]} 19. Rxa1 {[%clk 0:01:20]}  Nc5 {[%clk 0:01:58]} 20. Qd6 {[%clk 0:01:14]}  Qc8 {[%clk 0:01:57]} 21. Nce5 {[%clk 0:01:09]}  Ne4 {[%clk 0:01:55]} 22. Qc6 {[%clk 0:01:06]}  Qd8 {[%clk 0:01:49]} 23. h3 {[%clk 0:00:57]}  Rc8 {[%clk 0:01:49]} 24. Qd7 {[%clk 0:00:51]}  Qf6 {[%clk 0:01:46]} 25. Qxa7 {[%clk 0:00:48]}  Rfe8 {[%clk 0:01:44]} 26. Qd4 {[%clk 0:00:47]}  Rc2 {[%clk 0:01:36]} 27. Bd3 {[%clk 0:00:41]}  Rxf2 {[%clk 0:01:37]} 28. Bxe4 {[%clk 0:00:41]}  fxe4 {[%clk 0:01:37]} 29. Kxf2 {[%clk 0:00:39]}  exf3 {[%clk 0:01:38]} 30. Nxf3 {[%clk 0:00:39]}  Qd6 {[%clk 0:01:37]} 31. a6 {[%clk 0:00:38]}  Rb8 {[%clk 0:01:36]} 32. a7 {[%clk 0:00:36]}  Ra8 {[%clk 0:01:37]} 1-0

[Event "December 12 Early 2023"]
[Site "https://www.chess.com"]
[Date "2023.12.12"]
[Round "2"]
[White "Klukin, Kirill"]
[Black "yaguigor"]
[Result "1-0"]
[Board "127"]
[TimeControl "180+1"]
[WhiteFideId "24199273"]
[WhiteElo "2800"]
[BlackElo "2411"]
[WhiteTeam "RUS"]
[WhiteClock "0:00:02"]
[BlackClock "0:00:00"]

1. d4 {[%clk 0:02:43]}  d5 {[%clk 0:02:59]} 2. c4 {[%clk 0:02:42]}  c6 {[%clk 0:02:58]} 3. Nc3 {[%clk 0:02:40]}  Nf6 {[%clk 0:02:58]} 4. Nf3 {[%clk 0:02:39]}  e6 {[%clk 0:02:59]} 5. e3 {[%clk 0:02:37]}  Nbd7 {[%clk 0:02:58]} 6. Qc2 {[%clk 0:02:37]}  Bd6 {[%clk 0:02:57]} 7. Bd3 {[%clk 0:02:36]}  O-O {[%clk 0:02:57]} 8. O-O {[%clk 0:02:36]}  dxc4 {[%clk 0:02:57]} 9. Bxc4 {[%clk 0:02:36]}  b5 {[%clk 0:02:57]} 10. Be2 {[%clk 0:02:37]}  a6 {[%clk 0:02:57]} 11. Rd1 {[%clk 0:02:36]}  Qc7 {[%clk 0:02:56]} 12. e4 {[%clk 0:02:34]}  e5 {[%clk 0:02:56]} 13. dxe5 {[%clk 0:02:27]}  Nxe5 {[%clk 0:02:55]} 14. Nd4 {[%clk 0:02:27]}  Rd8 {[%clk 0:02:05]} 15. Bg5 {[%clk 0:02:26]}  Bc5 {[%clk 0:01:42]} 16. Ncxb5 {[%clk 0:00:54]}  cxb5 {[%clk 0:01:39]} 17. Rac1 {[%clk 0:00:53]}  Nc4 {[%clk 0:01:24]} 18. Bxc4 {[%clk 0:00:44]}  Rxd4 {[%clk 0:01:13]} 19. Rxd4 {[%clk 0:00:40]}  Bxd4 {[%clk 0:01:12]} 20. Qd2 {[%clk 0:00:12]}  bxc4 {[%clk 0:00:32]} 21. Qxd4 {[%clk 0:00:13]}  Be6 {[%clk 0:00:31]} 22. Bxf6 {[%clk 0:00:13]}  gxf6 {[%clk 0:00:31]} 23. Qxf6 {[%clk 0:00:13]}  Qd8 {[%clk 0:00:32]} 24. Qf4 {[%clk 0:00:11]}  Rb8 {[%clk 0:00:27]} 25. h3 {[%clk 0:00:08]}  Rxb2 {[%clk 0:00:25]} 26. Rc3 {[%clk 0:00:09]}  Rb1+ {[%clk 0:00:16]} 27. Kh2 {[%clk 0:00:09]}  Qb8 {[%clk 0:00:16]} 28. Rg3+ {[%clk 0:00:09]}  Kf8 {[%clk 0:00:16]} 29. e5 {[%clk 0:00:06]}  Re1 {[%clk 0:00:16]} 30. Qh6+ {[%clk 0:00:05]}  Ke7 {[%clk 0:00:16]} 31. Qh4+ {[%clk 0:00:04]}  Kd7 {[%clk 0:00:15]} 32. Qd4+ {[%clk 0:00:04]}  Kc6 {[%clk 0:00:14]} 33. f4 {[%clk 0:00:02]}  Qc7 {[%clk 0:00:07]} 34. Ra3 {[%clk 0:00:02]}  Kb7 {[%clk 0:00:05]} 35. Qc3 {[%clk 0:00:01]}  Rd1 {[%clk 0:00:04]} 36. Ra4 {[%clk 0:00:02]}  Rd3 {[%clk 0:00:04]} 37. Rb4+ {[%clk 0:00:02]}  Kc8 {[%clk 0:00:03]} 38. Qb2 {[%clk 0:00:03]}  Kd7 {[%clk 0:00:02]} 39. Qe2 {[%clk 0:00:03]}  Qc5 {[%clk 0:00:02]} 40. Rb7+ {[%clk 0:00:03]}  Kc8 {[%clk 0:00:01]} 41. Qb2 {[%clk 0:00:03]}  Qc6 {[%clk 0:00:01]} 42. Rb8+ {[%clk 0:00:03]}  Kc7 {[%clk 0:00:00]} 43. Rf8 {[%clk 0:00:02]} 1-0

[Event "December 12 Early 2023"]
[Site "https://www.chess.com"]
[Date "2023.12.12"]
[Round "2"]
[White "Shuvalova, Polina"]
[Black "Lima, Stefan Moisei VIeira"]
[Result "1-0"]
[Board "130"]
[TimeControl "180+1"]
[WhiteFideId "24171760"]
[BlackFideId "22782273"]
[WhiteElo "2767"]
[BlackElo "2406"]
[WhiteTeam "RUS"]
[BlackTeam "BRA"]
[WhiteClock "0:00:19"]
[BlackClock "0:00:00"]

1. e4 {[%clk 0:03:00]}  c5 {[%clk 0:02:59]} 2. Nf3 {[%clk 0:03:00]}  d6 {[%clk 0:02:59]} 3. Bb5+ {[%clk 0:03:00]}  Bd7 {[%clk 0:02:59]} 4. Bxd7+ {[%clk 0:03:01]}  Nxd7 {[%clk 0:03:00]} 5. O-O {[%clk 0:03:01]}  Ngf6 {[%clk 0:03:01]} 6. Qe2 {[%clk 0:03:02]}  e6 {[%clk 0:03:02]} 7. c3 {[%clk 0:03:03]}  Be7 {[%clk 0:03:02]} 8. d4 {[%clk 0:03:03]}  O-O {[%clk 0:03:03]} 9. Rd1 {[%clk 0:03:03]}  Rc8 {[%clk 0:03:02]} 10. e5 {[%clk 0:03:03]}  Nd5 {[%clk 0:03:02]} 11. c4 {[%clk 0:03:01]}  Nb4 {[%clk 0:03:03]} 12. dxc5 {[%clk 0:02:56]}  dxc5 {[%clk 0:02:54]} 13. Nc3 {[%clk 0:02:52]}  a6 {[%clk 0:02:47]} 14. Bf4 {[%clk 0:02:49]}  Nc6 {[%clk 0:02:37]} 15. Rd3 {[%clk 0:02:45]}  Qc7 {[%clk 0:02:37]} 16. Rad1 {[%clk 0:02:39]}  Rfd8 {[%clk 0:02:36]} 17. h4 {[%clk 0:02:37]}  Nf8 {[%clk 0:02:00]} 18. h5 {[%clk 0:02:35]}  Rxd3 {[%clk 0:01:58]} 19. Rxd3 {[%clk 0:02:36]}  Rd8 {[%clk 0:01:57]} 20. Ne4 {[%clk 0:02:34]}  Rxd3 {[%clk 0:01:38]} 21. Qxd3 {[%clk 0:02:33]}  Qd7 {[%clk 0:01:32]} 22. Qe3 {[%clk 0:02:23]}  Nd4 {[%clk 0:01:26]} 23. Nxd4 {[%clk 0:02:10]}  Qxd4 {[%clk 0:01:07]} 24. Qxd4 {[%clk 0:02:04]}  cxd4 {[%clk 0:01:07]} 25. Kf1 {[%clk 0:02:04]}  Nd7 {[%clk 0:01:00]} 26. Ke2 {[%clk 0:01:59]}  f6 {[%clk 0:01:00]} 27. exf6 {[%clk 0:01:50]}  gxf6 {[%clk 0:00:59]} 28. g4 {[%clk 0:01:46]}  e5 {[%clk 0:00:59]} 29. Bg3 {[%clk 0:01:33]}  Kf7 {[%clk 0:00:53]} 30. Bh4 {[%clk 0:01:28]}  Ke6 {[%clk 0:00:50]} 31. f3 {[%clk 0:01:23]}  Nb6 {[%clk 0:00:45]} 32. b3 {[%clk 0:01:23]}  Nc8 {[%clk 0:00:36]} 33. Be1 {[%clk 0:01:22]}  Nd6 {[%clk 0:00:33]} 34. Kd3 {[%clk 0:01:22]}  b6 {[%clk 0:00:28]} 35. Nxd6 {[%clk 0:01:09]}  Bxd6 {[%clk 0:00:28]} 36. Ke4 {[%clk 0:01:10]}  Ba3 {[%clk 0:00:19]} 37. Bd2 {[%clk 0:01:09]}  Bb2 {[%clk 0:00:19]} 38. f4 {[%clk 0:01:09]}  a5 {[%clk 0:00:16]} 39. fxe5 {[%clk 0:01:01]}  fxe5 {[%clk 0:00:16]} 40. g5 {[%clk 0:01:01]}  Ba3 {[%clk 0:00:15]} 41. Be1 {[%clk 0:01:00]}  Be7 {[%clk 0:00:10]} 42. Bd2 {[%clk 0:00:52]}  Bd8 {[%clk 0:00:10]} 43. a3 {[%clk 0:00:49]}  Be7 {[%clk 0:00:09]} 44. b4 {[%clk 0:00:50]}  axb4 {[%clk 0:00:09]} 45. axb4 {[%clk 0:00:51]}  Bd8 {[%clk 0:00:07]} 46. h6 {[%clk 0:00:46]}  Be7 {[%clk 0:00:03]} 47. b5 {[%clk 0:00:31]}  Bf8 {[%clk 0:00:03]} 48. Be1 {[%clk 0:00:29]}  Be7 {[%clk 0:00:03]} 49. Bh4 {[%clk 0:00:27]}  Bd8 {[%clk 0:00:04]} 50. Bg3 {[%clk 0:00:17]}  Bxg5 {[%clk 0:00:02]} 51. Bxe5 {[%clk 0:00:18]}  Bxh6 {[%clk 0:00:03]} 52. Bxd4 {[%clk 0:00:18]}  Kd6 {[%clk 0:00:00]} 53. Bxb6 {[%clk 0:00:19]} 1-0

[Event "December 12 Early 2023"]
[Site "https://www.chess.com"]
[Date "2023.12.12"]
[Round "2"]
[White "Ovezdurdyyeva, Jemal"]
[Black "Cieslak, Patryk"]
[Result "1-0"]
[Board "133"]
[TimeControl "180+1"]
[WhiteFideId "14001888"]
[BlackFideId "21078882"]
[WhiteElo "2403"]
[BlackElo "2711"]
[WhiteTeam "TKM"]
[BlackTeam "POL"]
[WhiteClock "0:01:44"]
[BlackClock "0:00:00"]

1. e4 {[%clk 0:03:00]}  g6 {[%clk 0:03:00]} 2. d4 {[%clk 0:03:00]}  Bg7 {[%clk 0:03:00]} 3. Nc3 {[%clk 0:03:01]}  c6 {[%clk 0:03:00]} 4. Nf3 {[%clk 0:03:01]}  d5 {[%clk 0:03:00]} 5. e5 {[%clk 0:02:59]}  h5 {[%clk 0:03:00]} 6. Bd3 {[%clk 0:02:52]}  Nh6 {[%clk 0:02:51]} 7. Bg5 {[%clk 0:02:47]}  Bg4 {[%clk 0:02:46]} 8. h3 {[%clk 0:02:47]}  Bxf3 {[%clk 0:02:13]} 9. Qxf3 {[%clk 0:02:48]}  Qb6 {[%clk 0:02:13]} 10. O-O-O {[%clk 0:02:46]}  e6 {[%clk 0:02:05]} 11. Bf6 {[%clk 0:02:42]}  Bxf6 {[%clk 0:01:46]} 12. Qxf6 {[%clk 0:02:40]}  Rh7 {[%clk 0:01:43]} 13. g4 {[%clk 0:02:39]}  Nd7 {[%clk 0:01:40]} 14. Qg5 {[%clk 0:02:39]}  Qd8 {[%clk 0:01:35]} 15. Qxd8+ {[%clk 0:02:36]}  Rxd8 {[%clk 0:01:34]} 16. gxh5 {[%clk 0:02:37]}  Nf5 {[%clk 0:01:32]} 17. hxg6 {[%clk 0:02:37]}  fxg6 {[%clk 0:01:33]} 18. Bxf5 {[%clk 0:02:37]}  gxf5 {[%clk 0:01:31]} 19. Ne2 {[%clk 0:02:34]}  Kf7 {[%clk 0:01:31]} 20. Rdg1 {[%clk 0:02:22]}  Rdh8 {[%clk 0:01:29]} 21. Rg3 {[%clk 0:02:20]}  Rh4 {[%clk 0:01:25]} 22. Rhg1 {[%clk 0:02:19]}  R8h7 {[%clk 0:01:16]} 23. Rg8 {[%clk 0:02:18]}  Rxh3 {[%clk 0:00:56]} 24. Ra8 {[%clk 0:02:07]}  Rh1 {[%clk 0:00:19]} 25. Rxh1 {[%clk 0:02:06]}  Rxh1+ {[%clk 0:00:20]} 26. Kd2 {[%clk 0:02:06]}  Nb6 {[%clk 0:00:16]} 27. Rxa7 {[%clk 0:02:01]}  Nc4+ {[%clk 0:00:15]} 28. Kc3 {[%clk 0:01:57]}  Rh3+ {[%clk 0:00:11]} 29. Kb4 {[%clk 0:01:56]}  Rf3 {[%clk 0:00:11]} 30. Rxb7+ {[%clk 0:01:56]}  Kg6 {[%clk 0:00:12]} 31. Kc5 {[%clk 0:01:55]}  Rxf2 {[%clk 0:00:11]} 32. Nc3 {[%clk 0:01:53]}  f4 {[%clk 0:00:10]} 33. Rb8 {[%clk 0:01:51]}  Ne3 {[%clk 0:00:06]} 34. Rg8+ {[%clk 0:01:48]}  Kf5 {[%clk 0:00:06]} 35. Rf8+ {[%clk 0:01:48]}  Kg4 {[%clk 0:00:06]} 36. Kd6 {[%clk 0:01:47]}  Nf5+ {[%clk 0:00:04]} 37. Kxe6 {[%clk 0:01:47]}  Nxd4+ {[%clk 0:00:05]} 38. Kd7 {[%clk 0:01:45]}  f3 {[%clk 0:00:02]} 39. e6 {[%clk 0:01:45]}  Re2 {[%clk 0:00:03]} 40. e7 {[%clk 0:01:45]}  Rxe7+ {[%clk 0:00:01]} 41. Kxe7 {[%clk 0:01:45]}  Nf5+ {[%clk 0:00:01]} 42. Rxf5 {[%clk 0:01:45]}  Kxf5 {[%clk 0:00:02]} 43. Nd1 {[%clk 0:01:44]}  Ke4 {[%clk 0:00:02]} 44. a4 {[%clk 0:01:45]}  c5 {[%clk 0:00:01]} 45. a5 {[%clk 0:01:45]}  f2 {[%clk 0:00:01]} 46. Nxf2+ {[%clk 0:01:44]}  Kd4 {[%clk 0:00:02]} 47. a6 {[%clk 0:01:44]}  Kc4 {[%clk 0:00:03]} 48. a7 {[%clk 0:01:44]}  Kb5 {[%clk 0:00:00]} 49. a8=Q {[%clk 0:01:44]} 1-0

[Event "December 12 Early 2023"]
[Site "https://www.chess.com"]
[Date "2023.12.12"]
[Round "2"]
[White "Rosenberg, Evan S"]
[Black "Aaditya Dhingra"]
[Result "0-1"]
[Board "134"]
[TimeControl "180+1"]
[WhiteFideId "2019299"]
[BlackFideId "25678191"]
[WhiteElo "2403"]
[BlackElo "2687"]
[WhiteTeam "USA"]
[BlackTeam "IND"]
[WhiteClock "0:00:07"]
[BlackClock "0:00:53"]

1. Nf3 {[%clk 0:03:00]}  g6 {[%clk 0:02:58]} 2. e4 {[%clk 0:02:47]}  Bg7 {[%clk 0:02:59]} 3. d4 {[%clk 0:02:48]}  c6 {[%clk 0:02:59]} 4. Be3 {[%clk 0:02:32]}  d5 {[%clk 0:02:58]} 5. e5 {[%clk 0:02:32]}  h5 {[%clk 0:02:58]} 6. c3 {[%clk 0:02:31]}  Nh6 {[%clk 0:02:58]} 7. h3 {[%clk 0:02:28]}  Nf5 {[%clk 0:02:58]} 8. Bg5 {[%clk 0:02:25]}  Nd7 {[%clk 0:02:57]} 9. Bd3 {[%clk 0:02:18]}  Nf8 {[%clk 0:02:53]} 10. Qe2 {[%clk 0:02:10]}  Nh6 {[%clk 0:02:51]} 11. Bc2 {[%clk 0:01:59]}  Bf5 {[%clk 0:02:49]} 12. Bb3 {[%clk 0:01:59]}  Ne6 {[%clk 0:02:46]} 13. Bd2 {[%clk 0:01:57]}  Be4 {[%clk 0:02:42]} 14. Na3 {[%clk 0:01:55]}  Nf5 {[%clk 0:02:37]} 15. Nc2 {[%clk 0:01:49]}  Bh6 {[%clk 0:02:30]} 16. O-O-O {[%clk 0:01:20]}  Bxd2+ {[%clk 0:02:21]} 17. Qxd2 {[%clk 0:01:13]}  a5 {[%clk 0:02:09]} 18. Ne3 {[%clk 0:01:11]}  Bxf3 {[%clk 0:02:05]} 19. gxf3 {[%clk 0:01:11]}  Neg7 {[%clk 0:02:01]} 20. h4 {[%clk 0:01:09]}  e6 {[%clk 0:02:00]} 21. c4 {[%clk 0:01:04]}  Nxh4 {[%clk 0:01:52]} 22. cxd5 {[%clk 0:01:04]}  cxd5 {[%clk 0:01:51]} 23. Kb1 {[%clk 0:01:04]}  Nxf3 {[%clk 0:01:48]} 24. Ba4+ {[%clk 0:01:03]}  Kf8 {[%clk 0:01:47]} 25. Qe2 {[%clk 0:01:04]}  Ng5 {[%clk 0:01:45]} 26. Rc1 {[%clk 0:01:04]}  Qb6 {[%clk 0:01:39]} 27. Rhd1 {[%clk 0:01:01]}  Nf5 {[%clk 0:01:38]} 28. Nxf5 {[%clk 0:01:00]}  exf5 {[%clk 0:01:37]} 29. Rc3 {[%clk 0:01:00]}  Ne6 {[%clk 0:01:34]} 30. Rb3 {[%clk 0:01:00]}  Qa7 {[%clk 0:01:32]} 31. Qd2 {[%clk 0:00:51]}  Kg7 {[%clk 0:01:30]} 32. Rb5 {[%clk 0:00:32]}  Rhd8 {[%clk 0:01:28]} 33. Bb3 {[%clk 0:00:27]}  Nc7 {[%clk 0:01:21]} 34. Rc5 {[%clk 0:00:27]}  b6 {[%clk 0:01:19]} 35. Rc3 {[%clk 0:00:21]}  a4 {[%clk 0:01:18]} 36. Bc2 {[%clk 0:00:20]}  Ne6 {[%clk 0:01:17]} 37. Rg3 {[%clk 0:00:14]}  f4 {[%clk 0:01:13]} 38. Rgg1 {[%clk 0:00:13]}  Qe7 {[%clk 0:01:06]} 39. Qe2 {[%clk 0:00:11]}  Rh8 {[%clk 0:01:02]} 40. a3 {[%clk 0:00:11]}  Rh6 {[%clk 0:01:01]} 41. Rg2 {[%clk 0:00:09]}  h4 {[%clk 0:01:01]} 42. Rdg1 {[%clk 0:00:09]}  h3 {[%clk 0:01:00]} 43. Rh2 {[%clk 0:00:09]}  Nxd4 {[%clk 0:01:00]} 44. Qd3 {[%clk 0:00:09]}  Nxc2 {[%clk 0:00:59]} 45. Qxc2 {[%clk 0:00:09]}  Qxe5 {[%clk 0:00:58]} 46. Ka2 {[%clk 0:00:09]}  f3 {[%clk 0:00:55]} 47. Rg3 {[%clk 0:00:09]}  Rah8 {[%clk 0:00:54]} 48. Rxf3 {[%clk 0:00:07]}  Qxh2 {[%clk 0:00:53]} 0-1

[Event "December 12 Early 2023"]
[Site "https://www.chess.com"]
[Date "2023.12.12"]
[Round "2"]
[White "Kleiman, Jake"]
[Black "Parra Gomez, Adrian"]
[Result "0-1"]
[Board "137"]
[TimeControl "180+1"]
[WhiteFideId "2020041"]
[BlackFideId "3513106"]
[WhiteElo "2644"]
[BlackElo "2399"]
[WhiteTeam "USA"]
[BlackTeam "CUB"]
[WhiteClock "0:00:41"]
[BlackClock "0:01:07"]

1. e4 {[%clk 0:03:00]}  c5 {[%clk 0:03:00]} 2. c3 {[%clk 0:03:00]}  d6 {[%clk 0:02:55]} 3. d4 {[%clk 0:03:00]}  cxd4 {[%clk 0:02:56]} 4. cxd4 {[%clk 0:03:01]}  Nf6 {[%clk 0:02:57]} 5. Nc3 {[%clk 0:03:01]}  Nc6 {[%clk 0:02:58]} 6. Nf3 {[%clk 0:03:01]}  d5 {[%clk 0:02:58]} 7. e5 {[%clk 0:02:57]}  Ne4 {[%clk 0:02:58]} 8. Bd3 {[%clk 0:02:57]}  Bf5 {[%clk 0:02:58]} 9. O-O {[%clk 0:02:53]}  e6 {[%clk 0:02:58]} 10. Re1 {[%clk 0:02:49]}  Nxc3 {[%clk 0:02:58]} 11. bxc3 {[%clk 0:02:50]}  Bxd3 {[%clk 0:02:59]} 12. Qxd3 {[%clk 0:02:51]}  Be7 {[%clk 0:03:00]} 13. Rb1 {[%clk 0:02:49]}  b6 {[%clk 0:03:00]} 14. c4 {[%clk 0:02:16]}  dxc4 {[%clk 0:03:00]} 15. Qxc4 {[%clk 0:02:16]}  Rc8 {[%clk 0:03:00]} 16. Qd3 {[%clk 0:02:04]}  O-O {[%clk 0:02:56]} 17. Bd2 {[%clk 0:01:59]}  Qd7 {[%clk 0:02:50]} 18. Bg5 {[%clk 0:01:50]}  h6 {[%clk 0:02:45]} 19. Be3 {[%clk 0:01:44]}  Rfd8 {[%clk 0:02:43]} 20. Qe4 {[%clk 0:01:42]}  Qd5 {[%clk 0:02:34]} 21. Qg4 {[%clk 0:01:42]}  Kf8 {[%clk 0:02:34]} 22. a4 {[%clk 0:01:36]}  Nb4 {[%clk 0:02:19]} 23. Qh5 {[%clk 0:01:22]}  Nc2 {[%clk 0:01:59]} 24. Re2 {[%clk 0:01:12]}  Nxe3 {[%clk 0:01:51]} 25. fxe3 {[%clk 0:01:12]}  Qe4 {[%clk 0:01:45]} 26. Rf1 {[%clk 0:01:10]}  Kg8 {[%clk 0:01:35]} 27. Nd2 {[%clk 0:01:05]}  Qg6 {[%clk 0:01:31]} 28. Qxg6 {[%clk 0:00:49]}  fxg6 {[%clk 0:01:32]} 29. Ne4 {[%clk 0:00:48]}  Rc4 {[%clk 0:01:32]} 30. Rfe1 {[%clk 0:00:46]}  Rxa4 {[%clk 0:01:29]} 31. Rc1 {[%clk 0:00:46]}  Rf8 {[%clk 0:01:08]} 32. Rc7 {[%clk 0:00:41]}  Ra1+ {[%clk 0:01:07]} 0-1

[Event "December 12 Early 2023"]
[Site "https://www.chess.com"]
[Date "2023.12.12"]
[Round "2"]
[White "Di Nicolantonio, Lucas"]
[Black "Balla, Tamas-Kristof"]
[Result "0-1"]
[Board "140"]
[TimeControl "180+1"]
[WhiteFideId "680460"]
[BlackFideId "1208497"]
[WhiteElo "2613"]
[BlackElo "2386"]
[WhiteTeam "FRA"]
[BlackTeam "ROU"]
[WhiteClock "0:00:34"]
[BlackClock "0:00:10"]

1. Nf3 {[%clk 0:03:00]}  c5 {[%clk 0:02:59]} 2. e3 {[%clk 0:03:01]}  Nc6 {[%clk 0:02:56]} 3. d4 {[%clk 0:03:01]}  cxd4 {[%clk 0:02:56]} 4. exd4 {[%clk 0:03:02]}  d5 {[%clk 0:02:57]} 5. Bb5 {[%clk 0:03:01]}  Nf6 {[%clk 0:02:56]} 6. O-O {[%clk 0:03:01]}  Bg4 {[%clk 0:02:55]} 7. h3 {[%clk 0:03:00]}  Bh5 {[%clk 0:02:55]} 8. g4 {[%clk 0:02:58]}  Bg6 {[%clk 0:02:54]} 9. Ne5 {[%clk 0:02:58]}  Rc8 {[%clk 0:02:47]} 10. c4 {[%clk 0:02:50]}  e6 {[%clk 0:02:38]} 11. Qa4 {[%clk 0:02:48]}  Qb6 {[%clk 0:02:15]} 12. c5 {[%clk 0:02:38]}  Qc7 {[%clk 0:02:14]} 13. Bf4 {[%clk 0:02:37]}  Bxb1 {[%clk 0:01:42]} 14. Raxb1 {[%clk 0:02:37]}  g5 {[%clk 0:01:25]} 15. Bg3 {[%clk 0:02:29]}  a6 {[%clk 0:01:12]} 16. Bxc6+ {[%clk 0:02:18]}  bxc6 {[%clk 0:01:11]} 17. Ng6 {[%clk 0:02:17]}  Qb7 {[%clk 0:01:05]} 18. Nxh8 {[%clk 0:02:16]}  Bg7 {[%clk 0:01:05]} 19. Nxf7 {[%clk 0:02:16]}  Kxf7 {[%clk 0:01:04]} 20. Be5 {[%clk 0:02:11]}  h5 {[%clk 0:01:02]} 21. f4 {[%clk 0:02:11]}  Kg8 {[%clk 0:00:46]} 22. fxg5 {[%clk 0:02:08]}  Ne4 {[%clk 0:00:46]} 23. g6 {[%clk 0:01:57]}  Bxe5 {[%clk 0:00:43]} 24. Rf7 {[%clk 0:01:55]}  Qb8 {[%clk 0:00:33]} 25. dxe5 {[%clk 0:01:51]}  Qxe5 {[%clk 0:00:34]} 26. Qb3 {[%clk 0:01:43]}  Qd4+ {[%clk 0:00:24]} 27. Kg2 {[%clk 0:01:38]}  Qd2+ {[%clk 0:00:22]} 28. Kg1 {[%clk 0:01:35]}  hxg4 {[%clk 0:00:16]} 29. hxg4 {[%clk 0:01:30]}  Qd4+ {[%clk 0:00:16]} 30. Kg2 {[%clk 0:01:28]}  Qd2+ {[%clk 0:00:16]} 31. Kg1 {[%clk 0:01:28]}  Qd4+ {[%clk 0:00:17]} 32. Kh1 {[%clk 0:01:00]}  Nd2 {[%clk 0:00:09]} 33. Qh3 {[%clk 0:00:55]}  Qe4+ {[%clk 0:00:09]} 34. Kg1 {[%clk 0:00:54]}  Qxb1+ {[%clk 0:00:09]} 35. Kh2 {[%clk 0:00:49]}  Qxg6 {[%clk 0:00:09]} 36. Rf2 {[%clk 0:00:42]}  Ne4 {[%clk 0:00:09]} 37. Rf4 {[%clk 0:00:43]}  Rf8 {[%clk 0:00:09]} 38. Rxf8+ {[%clk 0:00:42]}  Kxf8 {[%clk 0:00:09]} 39. Qh8+ {[%clk 0:00:43]}  Ke7 {[%clk 0:00:10]} 40. Qc8 {[%clk 0:00:41]}  Qxg4 {[%clk 0:00:08]} 41. Qc7+ {[%clk 0:00:41]}  Kf6 {[%clk 0:00:09]} 42. Qd8+ {[%clk 0:00:41]}  Ke5 {[%clk 0:00:10]} 43. Qh8+ {[%clk 0:00:41]}  Kf4 {[%clk 0:00:09]} 44. Qf8+ {[%clk 0:00:34]}  Ke3 {[%clk 0:00:10]} 0-1